bitfinex/quotes_SOLUSD_20240605
["timestamp","ask_amount","ask_price","bid_price","bid_amount"]
[1717558390677,24.5877,173.7,173.65,2.1307]
[1717558390875,2.1302,173.69,173.64,2.1308]
[1717558391099,7.15,173.67,173.64,2.1308]
[1717558391490,7.15,173.66,173.64,2.1308]
[1717558392393,7.15,173.67,173.65,2.1306]
[1717558393501,7.15,173.66,173.64,2.1307]
[1717558394208,7.15,173.65,173.64,2.1307]
[1717558394505,7.15,173.65,173.63,2.1309]
[1717558394883,7.15,173.64,173.61,2.1311]
[1717558395090,4.2605,173.69,173.62,2.131]
[1717558395091,7.15,173.63,173.62,2.131]
[1717558396592,7.15,173.64,173.63,2.1309]
[1717558397091,7.15,173.65,173.63,2.1309]
[1717558399917,7.15,173.65,173.62,2.131]
[1717558400215,7.15,173.65,173.63,2.1309]
[1717558400597,39.2505,173.7,173.6,24.2626]
[1717558400598,7.15,173.64,173.62,2.131]
[1717558400807,7.15,173.63,173.58,4.2629]
[1717558401013,7.15,173.62,173.61,2.1311]
[1717558401614,7.15,173.62,173.6,2.1312]
[1717558401937,7.15,173.62,173.59,20.0]
[1717558401938,0.17,173.69,173.59,20.0]
[1717558402098,7.15,173.64,173.61,2.1311]
[1717558402294,7.15,173.64,173.62,2.131]
[1717558402522,7.15,173.63,173.62,2.131]
[1717558404026,2.1305,173.67,173.62,2.131]
[1717558404325,7.15,173.64,173.62,2.131]
[1717558405121,2.1305,173.67,173.62,2.131]
[1717558405519,7.15,173.64,173.62,2.131]
[1717558406509,7.15,173.64,173.61,2.1311]
[1717558406709,7.15,173.64,173.62,2.131]
[1717558407325,7.15,173.63,173.62,2.131]
[1717558407710,2.1305,173.67,173.62,2.131]
[1717558408017,7.15,173.64,173.63,2.1309]
[1717558408223,2.1304,173.67,173.62,2.131]
[1717558408523,7.15,173.64,173.62,2.131]
[1717558410841,7.15,173.64,173.61,2.1311]
[1717558411643,7.15,173.63,173.61,2.1312]
[1717558411825,7.15,173.63,173.6,2.1312]
[1717558412028,7.15,173.63,173.61,2.1311]
[1717558413133,2.1309,173.64,173.59,2.1313]
[1717558413352,7.15,173.62,173.59,2.1313]
[1717558413550,7.15,173.62,173.6,2.1313]
[1717558413833,7.15,173.62,173.58,24.2631]
[1717558414037,7.15,173.63,173.61,2.1311]
[1717558414216,7.15,173.62,173.6,2.1312]
[1717558414635,7.15,173.61,173.6,2.1312]
[1717558415543,7.15,173.62,173.6,2.1312]
[1717558415952,7.15,173.62,173.61,2.1312]
[1717558416638,7.15,173.63,173.61,2.1312]
[1717558416825,7.15,173.62,173.61,2.1312]
[1717558417620,8.3168,173.66,173.61,2.1312]
[1717558417621,2.1306,173.66,173.61,2.1312]
[1717558417920,7.15,173.62,173.61,2.1312]
[1717558420435,17.602,173.67,173.62,2.131]
[1717558420740,6.66436292,173.69,173.64,2.1307]
[1717558421047,7.15,173.65,173.64,2.1307]
[1717558421227,2.1302,173.69,173.64,2.1307]
[1717558421541,7.15,173.65,173.64,2.1307]
[1717558422125,7.15,173.65,173.63,2.1308]
[1717558422343,7.15,173.64,173.63,2.1308]
[1717558424546,7.15,173.64,173.62,2.131]
[1717558424754,2.1303,173.68,173.63,2.1309]
[1717558424956,7.15,173.64,173.63,2.1309]
[1717558426137,7.15,173.64,173.62,2.131]
[1717558426346,23.4037,173.68,173.63,2.1309]
[1717558426532,7.15,173.64,173.63,2.1309]
[1717558427432,7.15,173.64,173.62,2.131]
[1717558427632,7.15,173.63,173.62,2.131]
[1717558435835,7.15,173.63,173.6,2.1313]
[1717558436041,7.15,173.61,173.6,2.1313]
[1717558438259,7.15,173.61,173.59,22.1313]
[1717558438466,7.15,173.6,173.59,22.1313]
[1717558439049,7.15,173.6,173.59,2.1313]
[1717558439255,7.15,173.6,173.59,2.1314]
[1717558442666,22.2787,173.64,173.57,30.6583]
[1717558442861,22.2787,173.64,173.59,2.1314]
[1717558443178,7.15,173.6,173.59,2.1314]
[1717558444278,7.15,173.6,173.58,2.1315]
[1717558444579,7.15,173.59,173.54,4.2641]
[1717558444763,51.0477,173.61,173.56,2.1317]
[1717558444963,7.15,173.57,173.56,2.1317]
[1717558449881,7.15,173.57,173.54,4.2641]
[1717558450089,7.15,173.55,173.54,20.0]
[1717558450384,7.15,173.55,173.54,22.132]
[1717558450862,7.15,173.55,173.54,26.3961]
[1717558451181,7.15,173.56,173.55,2.1319]
[1717558452573,4.55114974,173.64,173.55,120.0]
[1717558452775,22.1308,173.64,173.59,2.1313]
[1717558452982,7.15,173.6,173.59,2.1313]
[1717558455287,22.1308,173.64,173.59,2.1313]
[1717558455597,7.15,173.6,173.59,2.1314]
[1717558456985,2.1306,173.66,173.61,2.1311]
[1717558457209,7.15,173.62,173.61,2.1311]
[1717558457705,2.1306,173.66,173.61,2.1311]
[1717558457910,7.15,173.62,173.61,2.1311]
[1717558458207,7.15,173.62,173.57,14.9216]
[1717558458411,2.1308,173.65,173.6,2.1312]
[1717558458588,2.1306,173.66,173.61,2.1311]
[1717558458799,2.1305,173.67,173.62,2.131]
[1717558459003,7.15,173.63,173.62,2.131]
[1717558460321,7.15,173.63,173.61,2.1311]
[1717558460617,7.15,173.62,173.61,2.1311]
[1717558467422,26.26789084,173.7,173.58,20.0]
[1717558467728,2.1304,173.68,173.63,2.1309]
[1717558467906,7.15,173.64,173.63,2.1309]
[1717558468905,30.7302,173.7,173.65,2.1306]
[1717558469104,7.15,173.66,173.65,2.1306]
[1717558470726,7.15,173.66,173.6,19.1816]
[1717558470902,2.1305,173.67,173.63,2.1309]
[1717558471105,2.1304,173.68,173.64,2.1308]
[1717558471412,7.15,173.65,173.63,2.1308]
[1717558471622,7.15,173.64,173.63,2.1308]
[1717558474836,2.1303,173.69,173.65,2.1307]
[1717558475044,7.15,173.66,173.65,2.1307]
[1717558475522,7.15,173.66,173.62,6.3932]
[1717558475523,9.2806,173.66,173.62,2.131]
[1717558475712,7.15,173.63,173.61,20.0]
[1717558475906,7.15,173.63,173.62,2.131]
[1717558476116,7.15,173.63,173.62,6.3931]
[1717558476314,7.15,173.63,173.62,26.3931]
[1717558476811,7.15,173.63,173.62,32.7863]
[1717558477011,7.15,173.63,173.62,41.3106]
[1717558477226,7.15,173.64,173.63,6.3928]
[1717558477829,7.15,173.64,173.63,2.1309]
[1717558480435,7.15,173.64,173.63,6.3928]
[1717558480837,24.7631,173.72,173.64,8.5232]
[1717558481042,7.15,173.67,173.66,2.1305]
[1717558481408,24.7631,173.72,173.65,10.6533]
[1717558481608,7.15,173.67,173.66,2.1306]
[1717558481831,22.6332,173.72,173.68,2.1302]
[1717558482044,7.15,173.69,173.68,2.1302]
[1717558483515,7.15,173.69,173.67,2.1304]
[1717558483718,7.15,173.68,173.67,2.1304]
[1717558483922,2.1299,173.72,173.67,2.1304]
[1717558484546,7.15,173.68,173.67,2.1304]
[1717558484746,2.1298,173.73,173.69,2.1301]
[1717558484959,7.15,173.7,173.69,2.1301]
[1717558485129,21.5048,173.76,173.66,20.0]
[1717558485324,2.1296,173.74,173.7,2.13]
[1717558485630,2.1296,173.74,173.67,14.9131]
[1717558485631,7.15,173.71,173.69,2.1301]
[1717558485829,2.1296,173.74,173.7,2.1301]
[1717558486042,7.15,173.71,173.69,2.1301]
[1717558486346,7.15,173.7,173.69,2.1301]
[1717558486522,7.15,173.7,173.67,2.1304]
[1717558486718,2.1299,173.72,173.68,2.1303]
[1717558486719,7.15,173.69,173.68,2.1303]
[1717558488019,2.1296,173.74,173.7,2.13]
[1717558488244,7.15,173.71,173.7,2.13]
[1717558488423,7.15,173.71,173.69,2.1302]
[1717558488631,7.15,173.7,173.69,2.1302]
[1717558489254,7.15,173.7,173.68,2.1302]
[1717558489441,7.15,173.69,173.68,2.1302]
[1717558491649,22.8048,173.76,173.71,4.2598]
[1717558491958,4.57491963,173.77,173.74,2.1295]
[1717558492161,7.15,173.75,173.73,2.1296]
[1717558492463,7.15,173.74,173.73,2.1296]
[1717558493049,7.15,173.74,173.72,2.1297]
[1717558493250,7.15,173.73,173.71,2.1299]
[1717558493441,7.15,173.72,173.71,2.1299]
[1717558495254,7.15,173.72,173.7,2.13]
[1717558495467,7.15,173.71,173.7,2.13]
[1717558496464,7.15,173.71,173.7,2.1301]
[1717558496664,7.15,173.71,173.69,2.1301]
[1717558496966,7.15,173.7,173.66,4.2611]
[1717558497142,24.5322,173.74,173.69,2.1302]
[1717558497453,7.15,173.7,173.69,2.1302]
[1717558498245,22.4026,173.78,173.72,2.1298]
[1717558498569,7.15,173.73,173.72,2.1298]
[1717558499758,9.2798,173.73,173.68,2.1302]
[1717558499954,9.2798,173.73,173.67,20.0]
[1717558499955,7.15,173.7,173.67,24.2608]
[1717558500155,7.15,173.7,173.69,2.1302]
[1717558501072,7.15,173.7,173.68,2.1302]
[1717558501276,7.15,173.69,173.67,2.1303]
[1717558501466,7.15,173.68,173.67,2.1303]
[1717558504548,7.15,173.68,173.62,4.262]
[1717558504749,9.2801,173.7,173.65,2.1307]
[1717558504970,7.15,173.66,173.65,2.1307]
[1717558508077,50.0815,173.7,173.64,4.2616]
[1717558508446,50.0815,173.7,173.66,2.1305]
[1717558508654,7.15,173.67,173.66,2.1305]
[1717558509345,7.15,173.67,173.63,26.3929]
[1717558509346,7.15,173.67,173.63,20.0]
[1717558509553,7.15,173.64,173.63,2.1309]
[1717558514476,7.15,173.64,173.62,20.0]
[1717558514655,7.15,173.64,173.63,2.1309]
[1717558514855,21.4815,173.7,173.66,2.1305]
[1717558515063,7.15,173.67,173.66,2.1305]
[1717558515661,21.4815,173.7,173.66,2.1305]
[1717558515863,7.15,173.67,173.66,2.1305]
[1717558516061,7.15,173.67,173.65,2.1306]
[1717558516290,7.15,173.68,173.65,2.1306]
[1717558517884,2.1299,173.72,173.67,2.1304]
[1717558518187,7.15,173.7,173.67,2.1303]
[1717558518387,7.15,173.7,173.68,2.1303]
[1717558518554,7.15,173.7,173.67,2.1304]
[1717558518880,7.15,173.68,173.65,20.0]
[1717558519182,7.15,173.68,173.66,2.1305]
[1717558519774,7.15,173.68,173.67,2.1304]
[1717558520663,7.15,173.68,173.66,2.1305]
[1717558521093,7.15,173.68,173.67,2.1304]
[1717558521968,7.15,173.69,173.67,2.1304]
[1717558525893,7.15,173.69,173.68,2.1303]
[1717558528073,7.15,173.69,173.67,2.1304]
[1717558528272,7.15,173.68,173.67,2.1304]
[1717558528773,25.087,173.72,173.68,2.1303]
[1717558528974,7.15,173.69,173.68,2.1303]
[1717558529200,7.15,173.69,173.67,2.1304]
[1717558529379,7.15,173.68,173.67,2.1304]
[1717558532572,7.15,173.68,173.66,2.1305]
[1717558532776,7.15,173.67,173.66,2.1305]
[1717558535595,7.15,173.67,173.66,2.1306]
[1717558536707,7.15,173.67,173.65,2.1306]
[1717558536902,7.15,173.66,173.65,2.1306]
[1717558539206,7.15,173.66,173.63,2.1309]
[1717558539405,7.15,173.65,173.64,2.1307]
[1717558551614,2.13,173.71,173.66,2.1305]
[1717558551816,7.15,173.68,173.66,2.1305]
[1717558552017,7.15,173.67,173.66,2.1305]
[1717558552293,7.15,173.67,173.65,2.1306]
[1717558552694,7.15,173.66,173.65,2.1306]
[1717558554129,7.15,173.66,173.64,2.1307]
[1717558554297,7.15,173.65,173.64,2.1307]
[1717558554830,7.15,173.65,173.62,22.1309]
[1717558555005,7.15,173.63,173.6,4.2626]
[1717558555199,7.15,173.63,173.62,2.131]
[1717558557413,7.15,173.63,173.61,2.1311]
[1717558557631,7.15,173.63,173.6,4.2626]
[1717558557632,7.15,173.62,173.6,2.1313]
[1717558557799,7.15,173.61,173.6,2.1313]
[1717558558512,7.15,173.61,173.55,4.2637]
[1717558558719,7.15,173.57,173.56,7.90409399]
[1717558558925,7.15,173.57,173.56,6.3954]
[1717558559547,7.15,173.58,173.57,2.1317]
[1717558563233,7.15,173.58,173.53,120.0]
[1717558563234,7.15,173.58,173.51,120.0]
[1717558563440,7.15,173.53,173.52,10.6614]
[1717558563642,7.15,173.54,173.53,2.1321]
[1717558564514,7.15,173.54,173.53,22.1321]
[1717558565545,7.15,173.54,173.53,2.1321]
[1717558570449,7.15,173.54,173.5,2.1325]
[1717558570651,7.15,173.51,173.5,22.1325]
[1717558571944,7.15,173.51,173.5,26.3976]
[1717558576238,7.15,173.51,173.5,22.1325]
[1717558576462,7.15,173.51,173.49,2.1326]
[1717558576652,7.15,173.5,173.49,2.1326]
[1717558580453,6.77542411,173.61,173.52,8.5292]
[1717558580753,7.15,173.54,173.53,2.1321]
[1717558586181,7.15,173.55,173.54,2.1319]
[1717558587448,2.1314,173.6,173.54,2.1319]
[1717558587749,7.15,173.55,173.54,2.1319]
[1717558589979,6.3684,173.62,173.57,2.1315]
[1717558590165,7.15,173.58,173.57,2.1315]
[1717558590482,7.15,173.58,173.52,14.9258]
[1717558590675,28.6,173.61,173.54,2.132]
[1717558590866,7.15,173.55,173.54,2.132]
[1717558591474,30.7312,173.61,173.55,2.1318]
[1717558591679,7.15,173.56,173.55,2.1318]
[1717558593383,7.15,173.56,173.53,20.0]
[1717558593591,2.1313,173.6,173.55,2.1319]
[1717558593796,7.15,173.56,173.55,2.1319]
[1717558595072,28.6,173.61,173.57,2.1316]
[1717558595387,7.15,173.58,173.57,2.1316]
[1717558595768,7.15,173.58,173.56,2.1317]
[1717558596073,30.7312,173.61,173.55,2.1318]
[1717558596074,7.15,173.57,173.55,2.1318]
[1717558596258,7.15,173.56,173.55,2.1318]
[1717558600307,7.15,173.56,173.54,2.1319]
[1717558600475,7.15,173.55,173.54,2.1319]
[1717558601395,7.15,173.6,173.59,2.1313]
[1717558601699,7.15,173.6,173.59,2.1314]
[1717558602201,7.15,173.6,173.58,2.1315]
[1717558602411,22.5011,173.63,173.59,2.1314]
[1717558602696,7.15,173.6,173.59,2.1314]
[1717558606095,22.5011,173.63,173.6,2.1313]
[1717558606275,7.15,173.61,173.59,2.1313]
[1717558606476,7.15,173.6,173.58,2.1315]
[1717558606698,7.15,173.59,173.58,2.1315]
[1717558607483,24.6321,173.63,173.58,2.1315]
[1717558607798,7.15,173.59,173.58,2.1315]
[1717558611897,24.6321,173.63,173.58,2.1315]
[1717558612101,7.15,173.59,173.58,2.1315]
[1717558616096,22.5011,173.63,173.59,2.1314]
[1717558616295,7.15,173.6,173.58,2.1315]
[1717558616606,7.15,173.59,173.58,2.1315]
[1717558621808,2.1308,173.64,173.58,4.2631]
[1717558622117,7.15,173.59,173.58,6.3946]
[1717558622421,7.15,173.59,173.58,2.1315]
[1717558623807,23.8138,173.63,173.58,2.1315]
[1717558624003,7.15,173.59,173.58,2.1315]
[1717558627627,7.15,173.59,173.56,2.1318]
[1717558627837,4.2622,173.62,173.54,4.264]
[1717558627838,7.15,173.58,173.55,10.6595]
[1717558628129,7.15,173.58,173.57,2.1315]
[1717558630499,7.15,173.58,173.56,2.1317]
[1717558630704,7.15,173.57,173.55,2.1318]
[1717558630906,7.15,173.56,173.55,2.1318]
[1717558636739,28.6,173.61,173.57,2.1316]
[1717558637522,2.1311,173.62,173.57,2.1316]
[1717558637741,7.15,173.58,173.57,2.1316]
[1717558638319,7.15,173.58,173.56,2.1317]
[1717558638525,7.15,173.57,173.56,2.1317]
[1717558647826,7.15,173.57,173.55,2.1318]
[1717558648023,7.15,173.56,173.55,2.1318]
[1717558653032,7.15,173.56,173.54,2.132]
[1717558653232,7.15,173.55,173.54,2.132]
[1717558657366,7.15,173.55,173.5,6.004]
[1717558657367,9.2819,173.55,173.5,2.1325]
[1717558657542,7.15,173.51,173.48,10.6637]
[1717558657864,14.9213,173.58,173.48,2.1328]
[1717558657865,7.15,173.49,173.48,2.1328]
[1717558658063,7.15,173.49,173.48,22.1328]
[1717558658441,7.15,173.49,173.48,26.3984]
[1717558659476,7.15,173.5,173.49,2.1326]
[1717558659761,7.15,173.51,173.5,2.1325]
[1717558661067,17.3042,173.57,173.51,2.1323]
[1717558661270,7.15,173.52,173.51,2.1323]
[1717558662971,7.15,173.52,173.5,2.1324]
[1717558663158,2.1318,173.56,173.51,2.1324]
[1717558663357,7.15,173.52,173.51,2.1324]
[1717558663868,7.15,173.52,173.5,2.1324]
[1717558664366,7.15,173.51,173.5,2.1324]
[1717558665750,7.15,173.51,173.48,20.0]
[1717558665950,7.15,173.5,173.49,2.1326]
[1717558666361,7.15,173.5,173.48,2.1327]
[1717558666551,7.15,173.49,173.48,2.1327]
[1717558666755,7.15,173.49,173.47,2.1328]
[1717558667473,7.15,173.49,173.48,2.1328]
[1717558668249,7.15,173.5,173.49,2.1326]
[1717558668570,7.15,173.5,173.48,2.1327]
[1717558668767,7.15,173.49,173.48,2.1327]
[1717558670253,7.15,173.49,173.47,2.1328]
[1717558670444,7.15,173.49,173.46,20.0]
[1717558670649,7.15,173.48,173.47,2.1329]
[1717558672689,2.1321,173.54,173.48,2.1327]
[1717558672690,7.15,173.49,173.48,2.1327]
[1717558673463,6.0231,173.56,173.49,2.1325]
[1717558673767,7.15,173.5,173.49,2.1325]
[1717558674372,7.15,173.5,173.48,2.1327]
[1717558674590,7.15,173.49,173.48,2.1327]
[1717558675682,4.2637,173.56,173.49,2.1326]
[1717558675875,7.15,173.5,173.48,2.1327]
[1717558676076,7.15,173.49,173.48,2.1327]
[1717558683903,15.2549,173.55,173.5,2.1324]
[1717558684198,7.15,173.51,173.5,2.1324]
[1717558684807,7.15,173.51,173.49,2.1326]
[1717558685105,7.15,173.5,173.49,2.1326]
[1717558685491,7.15,173.5,173.46,30.665]
[1717558685492,7.15,173.5,173.48,2.1327]
[1717558685678,7.15,173.49,173.48,2.1327]
[1717558685879,28.6,173.52,173.48,2.1327]
[1717558690217,28.6,173.52,173.47,2.1328]
[1717558690392,30.7323,173.52,173.47,2.1328]
[1717558690602,30.7323,173.52,173.46,2.1329]
[1717558690801,30.7323,173.52,173.47,2.1329]
[1717558691005,7.15,173.48,173.43,2.1333]
[1717558691195,2.1326,173.5,173.44,2.1332]
[1717558691383,67.7865,173.51,173.44,2.1332]
[1717558691384,7.15,173.45,173.44,2.1332]
[1717558691588,7.15,173.45,173.42,4.267]
[1717558691589,7.15,173.46,173.45,2.1331]
[1717558694029,7.15,173.47,173.46,2.1329]
[1717558694917,28.6,173.52,173.48,2.1327]
[1717558695117,16.439,173.55,173.47,4.2658]
[1717558695320,7.15,173.5,173.49,2.1326]
[1717558696032,7.15,173.5,173.48,2.1327]
[1717558696206,2.132,173.54,173.49,2.1326]
[1717558696409,7.15,173.5,173.49,2.1326]
[1717558700213,7.15,173.5,173.48,2.1327]
[1717558700409,7.15,173.49,173.48,2.1327]
[1717558701908,7.15,173.49,173.46,4.266]
[1717558702208,7.15,173.48,173.47,2.1329]
[1717558702718,7.15,173.49,173.48,2.1327]
[1717558706428,2.1321,173.54,173.48,2.1327]
[1717558706631,2.1321,173.54,173.49,2.1326]
[1717558706931,7.15,173.5,173.49,2.1326]
[1717558707430,4.7042453,173.57,173.5,2.1324]
[1717558707614,20.0,173.57,173.51,6.3971]
[1717558707813,20.0,173.57,173.52,2.1322]
[1717558708028,7.15,173.53,173.52,2.1322]
[1717558708632,7.15,173.53,173.51,2.1323]
[1717558709430,7.15,173.53,173.5,2.1325]
[1717558710118,7.15,173.52,173.5,2.1325]
[1717558710549,2.1319,173.55,173.5,2.1325]
[1717558710763,7.15,173.52,173.46,140.0]
[1717558711058,7.15,173.52,173.49,2.1326]
[1717558711848,7.15,173.52,173.5,2.1325]
[1717558712144,7.15,173.51,173.49,2.1326]
[1717558712348,7.15,173.5,173.48,2.1327]
[1717558712534,7.15,173.49,173.48,2.1327]
[1717558713249,2.132,173.55,173.49,2.1326]
[1717558713424,7.15,173.5,173.49,2.1326]
[1717558714051,7.15,173.5,173.48,2.1327]
[1717558714355,7.15,173.49,173.45,4.2661]
[1717558714522,7.15,173.48,173.47,2.1328]
[1717558714722,7.15,173.49,173.45,10.6656]
[1717558714921,7.15,173.5,173.48,2.1327]
[1717558715847,7.15,173.49,173.48,2.1327]
[1717558716144,7.15,173.49,173.47,2.1329]
[1717558717042,7.15,173.49,173.48,2.1328]
[1717558719437,7.15,173.49,173.47,2.1328]
[1717558719640,7.15,173.48,173.47,2.1328]
[1717558730350,7.15,173.49,173.48,2.1327]
[1717558732041,7.15,173.49,173.47,2.1328]
[1717558732246,7.15,173.48,173.47,2.1328]
[1717558732448,50.4724,173.52,173.48,2.1327]
[1717558732756,7.15,173.49,173.48,2.1327]
[1717558733128,21.8724,173.52,173.48,2.1327]
[1717558733327,7.15,173.5,173.46,10.665]
[1717558733650,7.15,173.49,173.48,2.1328]
[1717558736258,2.1322,173.53,173.48,2.1328]
[1717558736435,7.15,173.49,173.48,2.1328]
[1717558736736,2.1321,173.54,173.49,2.1326]
[1717558736936,7.15,173.5,173.49,2.1326]
[1717558737641,7.15,173.5,173.48,2.1327]
[1717558737862,2.1321,173.54,173.48,2.1327]
[1717558737863,7.15,173.49,173.48,2.1327]
[1717558738751,2.1321,173.54,173.49,2.1326]
[1717558739058,7.15,173.5,173.49,2.1326]
[1717558739364,7.15,173.5,173.48,2.1327]
[1717558739562,21.5456,173.54,173.51,2.1324]
[1717558739745,7.15,173.52,173.49,2.1326]
[1717558739940,7.15,173.51,173.49,2.1326]
[1717558740634,23.6776,173.54,173.48,2.1327]
[1717558740856,7.15,173.49,173.48,2.1327]
[1717558741048,7.15,173.49,173.47,2.1328]
[1717558741252,7.15,173.49,173.48,2.1328]
[1717558741663,7.15,173.5,173.48,2.1328]
[1717558742076,7.15,173.49,173.48,2.1328]
[1717558742254,7.15,173.49,173.47,2.1328]
[1717558742453,7.15,173.5,173.47,2.1328]
[1717558742653,7.15,173.49,173.47,2.1328]
[1717558743257,7.15,173.49,173.48,2.1328]
[1717558748075,7.15,173.49,173.47,2.1329]
[1717558749384,7.15,173.49,173.45,130.6657]
[1717558749558,7.15,173.49,173.47,2.1328]
[1717558751263,7.15,173.49,173.48,2.1328]
[1717558751567,7.15,173.49,173.45,10.6657]
[1717558751764,7.15,173.49,173.47,2.1328]
[1717558751978,2.1323,173.52,173.47,2.1328]
[1717558751979,7.15,173.48,173.47,2.1328]
[1717558752485,7.15,173.48,173.46,2.133]
[1717558752662,7.15,173.48,173.47,2.1329]
[1717558753163,7.15,173.48,173.47,3.64759897]
[1717558754371,7.15,173.48,173.47,2.1329]
[1717558754562,7.15,173.48,173.47,3.64761302]
[1717558756183,7.15,173.48,173.43,4.2666]
[1717558756500,7.15,173.46,173.45,2.1331]
[1717558756661,7.15,173.46,173.45,3.64786126]
[1717558760876,30.7323,173.52,173.46,2.1329]
[1717558761077,7.15,173.47,173.46,2.1329]
[1717558761467,2.1324,173.51,173.46,2.1329]
[1717558761786,7.15,173.47,173.46,2.1329]
[1717558762673,7.15,173.47,173.41,120.0]
[1717558762988,7.15,173.46,173.45,2.133]
[1717558763159,7.15,173.47,173.45,3.64789538]
[1717558763363,7.15,173.47,173.45,2.133]
[1717558763587,7.15,173.47,173.46,2.133]
[1717558772982,7.15,173.47,173.45,2.1331]
[1717558773295,7.15,173.46,173.45,2.1331]
[1717558776090,7.15,173.46,173.42,4.2668]
[1717558776269,28.6,173.52,173.42,4.2668]
[1717558776270,7.15,173.43,173.42,2.1334]
[1717558779075,7.15,173.43,173.35,8.5373]
[1717558779282,7.15,173.39,173.37,2.1341]
[1717558779492,7.15,173.39,173.38,2.134]
[1717558779903,28.6,173.43,173.39,2.1339]
[1717558780277,7.15,173.4,173.39,2.1339]
[1717558780478,7.15,173.4,173.38,2.1339]
[1717558780687,7.15,173.39,173.38,2.1339]
[1717558781091,7.15,173.39,173.37,2.134]
[1717558781288,7.15,173.38,173.37,2.134]
[1717558785509,51.8358,173.43,173.38,2.134]
[1717558785713,7.15,173.39,173.38,2.134]
[1717558789186,7.15,173.39,173.37,2.134]
[1717558789385,7.15,173.38,173.37,2.134]
[1717558791198,53.9692,173.43,173.38,2.134]
[1717558791400,22.4355,173.42,173.39,2.1338]
[1717558791606,7.15,173.4,173.37,4.2681]
[1717558791911,7.15,173.39,173.38,2.1339]
[1717558793100,7.15,173.39,173.36,12.8056]
[1717558793101,7.15,173.39,173.36,2.1342]
[1717558793296,7.15,173.37,173.36,2.1342]
[1717558799801,7.15,173.38,173.36,2.1342]
[1717558800823,24.9301,173.42,173.34,30.6725]
[1717558801127,7.15,173.38,173.36,2.1342]
[1717558801313,7.15,173.37,173.36,2.1342]
[1717558802837,7.15,173.37,173.32,10.6736]
[1717558803028,7.15,173.35,173.34,2.1344]
[1717558811724,27.0637,173.42,173.33,20.0]
[1717558811725,22.7966,173.42,173.33,20.0]
[1717558811923,7.15,173.39,173.36,2.1342]
[1717558812109,7.15,173.38,173.36,2.1342]
[1717558812309,7.15,173.37,173.36,2.1342]
[1717558812905,7.15,173.37,173.35,2.1343]
[1717558813124,7.15,173.36,173.35,2.1343]
[1717558813425,7.15,173.36,173.34,2.1344]
[1717558813649,7.15,173.35,173.34,2.1344]